bitfinex/quotes_ETHUSD_20210701
["timestamp","ask_amount","ask_price","bid_price","bid_amount"]
[1625118024143,61.13839422,2204.8,2204.7,1.327e-05]
[1625118024241,65.68737854,2204.8,2204.7,1.327e-05]
[1625118024340,65.70225583,2204.8,2204.7,1.327e-05]
[1625118024444,65.80225583,2204.8,2204.7,1.327e-05]
[1625118025390,72.60736583,2204.8,2204.7,1.327e-05]
[1625118025491,27.65,2204.7,2204.3,0.01634789]
[1625118025590,26.99386251,2204.6,2204.3,0.01634789]
[1625118025690,5.01,2204.5,2204.3,0.01634789]
[1625118025790,24.0,2204.4,2203.9,0.00260318]
[1625118025893,34.70391594,2204.3,2203.9,0.00260318]
[1625118025990,3.4029802,2204.1,2203.9,0.00260318]
[1625118026091,8.4129802,2204.1,2203.9,0.00260318]
[1625118026291,5.01,2204.0,2203.9,0.00260318]
[1625118026392,8.4129802,2204.1,2203.9,0.00260318]
[1625118026894,15.2189502,2204.1,2203.9,0.00260318]
[1625118026994,20.87529035,2204.1,2203.9,0.00260318]
[1625118027131,5.11,2204.0,2203.9,0.00260318]
[1625118027431,10.82995065,2204.0,2203.9,0.00260318]
[1625118027630,10.72995065,2204.0,2203.9,0.00260318]
[1625118029554,10.74482794,2204.0,2203.9,0.00260318]
[1625118029755,10.75970523,2204.0,2203.9,0.00260318]
[1625118031696,38.29381226,2204.0,2203.9,0.00260318]
[1625118031801,48.74781226,2204.0,2203.9,0.00260318]
[1625118031899,48.88781226,2204.0,2203.9,0.00260318]
[1625118031993,60.03781226,2204.0,2203.9,0.00260318]
[1625118032194,40.03781226,2204.0,2203.9,0.00260318]
[1625118032394,42.03781226,2204.0,2203.9,0.00260318]
[1625118032995,62.03781226,2204.0,2203.9,0.00260318]
[1625118033096,42.03781226,2204.0,2203.9,0.00260318]
[1625118033398,40.53381226,2204.0,2203.9,0.00260318]
[1625118033499,25.53381226,2204.0,2203.9,0.00260318]
[1625118033598,20.99970523,2204.0,2203.9,0.00260318]
[1625118033698,12.99970523,2204.0,2203.9,0.00260318]
[1625118034436,20.99970523,2204.0,2203.9,0.00260318]
[1625118034534,12.99970523,2204.0,2203.9,0.00260318]
[1625118034633,12.89970523,2204.0,2203.9,0.00260318]
[1625118036739,7.17975458,2204.0,2203.9,0.00260318]
[1625118037592,12.8791031,2204.0,2203.9,0.00260318]
[1625118037693,12.9791031,2204.0,2203.9,0.00260318]
[1625118039287,20.9791031,2204.0,2203.9,0.00260318]
[1625118039592,35.9791031,2204.0,2203.9,0.00260318]
[1625118039691,40.47012631,2204.0,2203.9,0.00260318]
[1625118040097,42.81542846,2204.0,2203.9,0.00260318]
[1625118040191,62.81542846,2204.0,2203.9,0.00260318]
[1625118040291,63.2640645,2204.0,2203.9,0.00260318]
[1625118040395,62.55322631,2204.0,2203.9,0.00260318]
[1625118040492,44.2073655,2204.0,2203.9,0.00260318]
[1625118040634,44.43753508,2204.0,2203.9,0.00260318]
[1625118041033,44.86274955,2204.0,2203.9,0.00260318]
[1625118041938,32.66,2203.9,2203.1,0.02351233]
[1625118042039,11.3467282,2203.7,2203.1,0.02351233]
[1625118042137,5.86318688,2203.6,2203.1,0.02351233]
[1625118042237,5.01,2203.5,2203.1,0.02351233]
[1625118042340,5.01,2203.4,2203.1,0.02351233]
[1625118042437,9.97757729,2203.4,2203.1,0.02351233]
[1625118042636,16.80035458,2203.4,2203.1,0.02351233]
[1625118043288,22.50042387,2203.4,2203.1,0.02351233]
[1625118043393,16.80035458,2203.4,2203.1,0.02351233]
[1625118043691,22.50599727,2203.4,2203.1,0.02351233]
[1625118044194,5.6,2203.3,2203.1,4.692e-05]
[1625118044293,10.61,2203.3,2203.1,4.692e-05]
[1625118044473,10.79293211,2203.2,2203.1,4.692e-05]
[1625118044669,10.73293211,2203.2,2203.1,4.692e-05]
[1625118046454,17.54090211,2203.2,2203.1,4.692e-05]
[1625118047006,11.81797,2203.2,2203.1,4.692e-05]
[1625118047441,5.01,2203.2,2203.1,4.692e-05]
[1625118047639,2.32478394,2203.2,2203.1,4.692e-05]
[1625118047739,2.33966123,2203.2,2203.1,4.692e-05]
[1625118047838,0.01487729,2203.2,2203.1,4.692e-05]
[1625118047939,0.02975458,2203.2,2203.1,4.692e-05]
[1625118049044,5.6815855,2203.2,2203.1,4.692e-05]
[1625118049143,5.03975458,2203.2,2203.1,4.692e-05]
[1625118050082,10.7935082,2203.2,2203.1,4.692e-05]
[1625118050181,10.77451596,2203.2,2203.1,4.692e-05]
[1625118050582,16.42451596,2203.2,2203.1,4.692e-05]
[1625118050982,16.50451596,2203.2,2203.1,4.692e-05]
[1625118051081,10.85451596,2203.2,2203.1,4.692e-05]
[1625118051180,10.77451596,2203.2,2203.1,4.692e-05]
[1625118052033,5.03975458,2203.2,2203.1,4.692e-05]
[1625118052235,0.02975458,2203.2,2203.1,4.692e-05]
[1625118052334,0.02975458,2203.2,2203.1,4.35964692]
[1625118052433,0.02975458,2203.2,2203.1,4.49964692]
[1625118052635,0.02975458,2203.2,2203.1,4.69964692]
[1625118053436,0.02975458,2203.2,2203.1,4.49964692]
[1625118054260,3.73305458,2203.2,2203.1,4.692e-05]
[1625118054458,9.47167646,2203.2,2203.1,4.692e-05]
[1625118054556,12.00457702,2203.2,2203.1,4.692e-05]
[1625118055557,26.66184702,2203.2,2203.1,4.692e-05]
[1625118055656,28.99008701,2203.2,2203.1,4.692e-05]
[1625118055757,29.03008701,2203.2,2203.1,4.692e-05]
[1625118055856,29.17008701,2203.2,2203.1,4.692e-05]
[1625118056340,21.32008701,2203.2,2203.1,4.692e-05]
[1625118057034,13.5,2203.1,2202.9,0.00010833]
[1625118057235,11.81887,2203.0,2202.9,0.00010833]
[1625118057533,11.83374729,2203.0,2202.9,0.00010833]
[1625118057734,11.84862458,2203.0,2202.9,0.00010833]
[1625118060203,17.56947205,2203.0,2202.9,0.00010833]
[1625118060412,11.84862458,2203.0,2202.9,0.00010833]
[1625118060852,12.95415,2202.9,2202.5,0.02683343]
[1625118060957,5.95806162,2202.7,2202.5,0.02683343]
[1625118061053,10.37944019,2202.7,2202.5,0.02683343]
[1625118061155,5.67893004,2202.6,2202.5,0.02683343]
[1625118062255,11.19934,2202.7,2202.5,0.02683343]
[1625118062952,8.51367308,2202.7,2202.5,0.02683343]
[1625118063088,10.71919682,2202.6,2202.5,0.02683343]
[1625118063289,10.73407411,2202.6,2202.5,0.02683343]
[1625118063389,10.7489514,2202.6,2202.5,0.02683343]
[1625118063793,10.7489514,2202.6,2201.9,9.20904]
[1625118063991,14.1535914,2202.6,2201.9,9.20904]
[1625118064091,14.1535914,2202.6,2201.9,6.80904]
[1625118064192,14.1535914,2202.6,2202.0,0.12]
[1625118064290,9.1435914,2202.6,2202.0,0.12]
[1625118064490,9.1435914,2202.6,2201.9,6.80904]
[1625118064895,6.80937,2202.5,2201.9,6.80904]
[1625118064992,5.68167639,2202.4,2201.9,6.80904]
[1625118065648,5.68167639,2202.4,2201.7,0.14]
[1625118065849,5.68167639,2202.4,2201.7,5.15]
[1625118067404,5.68167639,2202.4,2201.7,11.95946]
[1625118068241,10.21414,2202.5,2201.7,11.95946]
[1625118068444,10.21414,2202.5,2201.8,0.04]
[1625118068541,3.40477,2202.5,2201.9,6.80905]
[1625118068641,0.01487729,2202.1,2201.9,6.80905]
[1625118068751,3.57205458,2202.1,2201.9,6.80905]
[1625118068943,3.55717729,2202.1,2202.0,6.28]
[1625118069342,3.55717729,2202.1,2202.0,0.08]
[1625118069443,3.55717729,2202.1,2201.7,5.15]
[1625118069542,3.55717729,2202.1,2201.7,14.22865]
[1625118073886,3.5423,2202.1,2201.7,14.22865]
[1625118073986,2.4154,2202.2,2201.7,14.22865]
[1625118074087,5.9606188,2202.4,2201.8,0.12]
[1625118074190,0.01487729,2202.0,2201.8,0.12]
[1625118074342,0.01487729,2202.0,2201.8,6.80943]
[1625118076696,0.01487729,2202.0,2201.7,9.21865]
[1625118076797,5.05667729,2202.0,2201.7,0.14]
[1625118076898,5.05667729,2202.0,2201.2,11.34576]
[1625118076998,10.90206405,2202.0,2201.2,11.34576]
[1625118077097,10.90206405,2202.0,2201.3,0.14]
[1625118077198,5.05667729,2202.0,2201.3,0.14]
[1625118077500,10.77799779,2202.0,2201.3,0.14]
[1625118077897,10.77799779,2202.0,2201.4,5.01]
[1625118077998,8.09187529,2202.0,2201.4,5.01]
[1625118078198,8.09187529,2202.0,2201.4,0.14]
[1625118078299,8.09187529,2202.0,2201.3,6.81082]
[1625118078702,8.09187529,2202.0,2201.4,0.06]
[1625118078850,8.09187529,2202.0,2201.3,6.81082]
[1625118079150,14.90302529,2202.0,2201.1,6.95139]
[1625118080906,14.90302529,2202.0,2201.1,6.81139]
[1625118081118,14.90302529,2202.0,2200.9,10.572]
[1625118081119,5.01,2201.8,2200.9,10.572]
[1625118081120,6.53387471,2201.7,2200.8,6.85]
[1625118081318,5.01,2201.5,2200.8,6.85]
[1625118081420,6.53892984,2201.4,2200.8,6.85]
[1625118081519,6.42087742,2201.4,2200.8,6.85]
[1625118082118,6.42087742,2201.4,2200.3,33.81896611]
[1625118083119,6.42087742,2201.4,2200.5,5.01]
[1625118083344,6.42087742,2201.4,2200.3,33.81896611]
[1625118083445,13.23420742,2201.4,2200.5,6.81319]
[1625118083543,13.23420742,2201.4,2200.5,11.82319]
[1625118083747,13.23420742,2201.4,2200.5,6.81319]
[1625118084851,5.01,2201.2,2200.3,0.14]
[1625118084950,6.18663993,2201.1,2200.3,0.14]
[1625118085251,6.18663993,2201.1,2200.2,5.01]
[1625118086093,6.18663993,2201.1,2200.2,5.01608215]
[1625118086394,13.00064993,2201.1,2200.3,6.81371]
[1625118087402,13.00064993,2201.1,2200.3,7.71940055]
[1625118087496,13.00064993,2201.1,2200.3,6.81371]
[1625118089969,16.40776993,2201.1,2200.3,6.81371]
[1625118090654,10.22113,2201.1,2200.4,6.16491274]
[1625118090752,3.40712,2201.1,2200.4,6.37559184]
[1625118090852,10.887,2201.3,2200.4,6.37559184]
[1625118090954,5.01,2201.5,2200.5,0.12]
[1625118091052,4.54267,2201.7,2200.6,5.01]
[1625118091156,6.55183653,2201.9,2200.7,6.8439159]
[1625118091254,6.55183653,2201.9,2200.7,11.6657159]
[1625118091351,3.40641,2201.7,2200.9,5.01]
[1625118091552,3.40641,2201.7,2201.0,0.14]
[1625118091751,10.21847,2201.7,2201.0,6.95168]
[1625118091854,10.21847,2201.7,2201.0,0.14]
[1625118091953,3.40641,2201.7,2201.0,0.14]
[1625118092051,6.81261,2201.7,2201.0,0.14]
[1625118092154,0.04,2201.6,2201.0,0.14]
[1625118092386,4.59136752,2201.6,2201.0,0.14]
[1625118092788,4.55136752,2201.6,2201.0,0.14]
[1625118092888,6.81261,2201.7,2201.0,0.14]
[1625118093243,6.8124,2201.6,2201.0,0.14]
[1625118093341,6.81261,2201.7,2201.0,0.14]
[1625118093940,4.59135219,2201.6,2201.0,0.14]
[1625118094139,6.81261,2201.7,2201.0,0.14]
[1625118094641,3.4062,2201.7,2201.0,6.95177]
[1625118094837,3.4062,2201.7,2201.1,0.1]
[1625118095043,3.4062,2201.7,2200.9,0.14]
[1625118095541,5.01,2201.8,2200.9,0.14]
[1625118095640,5.01,2201.8,2200.9,3.4216]
[1625118095839,5.01,2201.8,2201.0,6.19000461]
[1625118095939,5.01,2201.8,2201.0,6.31000461]
[1625118096040,5.01,2201.8,2201.1,0.14]
[1625118096440,5.01,2201.8,2201.3,6.81084]
[1625118096889,4.62010681,2201.9,2201.3,6.81084]
[1625118097089,5.54171,2202.1,2201.3,6.81084]
[1625118097188,10.04886556,2202.1,2201.3,6.81084]
[1625118097291,10.07812485,2202.1,2201.4,0.18]
[1625118097491,5.54171,2202.1,2201.5,6.81039]
[1625118097989,4.54171,2202.1,2201.5,6.81039]
[1625118098092,10.913,2202.2,2201.5,6.81039]
[1625118098292,10.913,2202.2,2201.6,0.08]
[1625118098494,10.913,2202.2,2201.5,6.81039]
[1625118098992,16.72386,2202.2,2201.5,6.81039]
[1625118099901,9.913,2202.2,2201.5,6.81039]
[1625118100501,9.913,2202.2,2201.5,6.95039]
[1625118100700,9.913,2202.2,2201.6,6.14028801]
[1625118100805,1.0,2202.3,2201.6,6.14028801]
[1625118100905,1.0,2202.3,2201.7,0.14]
[1625118101100,8.15005802,2202.5,2201.7,0.14]
[1625118101361,11.55529802,2202.5,2201.7,0.14]
[1625118101602,6.81054,2202.3,2201.5,12.77690673]
[1625118101700,6.81054,2202.3,2201.5,6.95039]
[1625118101798,6.81054,2202.3,2201.5,0.14]
[1625118101998,6.81054,2202.3,2201.5,5.15]
[1625118102199,6.81054,2202.3,2201.3,6.85]
[1625118102200,9.51143931,2202.2,2201.3,6.85]
[1625118102303,5.01,2202.1,2201.3,6.85]
[1625118102400,5.7932698,2201.9,2201.3,6.85]
[1625118102501,4.5559,2201.9,2201.3,6.85]
[1625118102901,11.36772,2201.9,2201.3,6.85]
[1625118104308,12.36772,2201.9,2201.3,6.85]
[1625118104771,5.5559,2201.9,2201.3,6.85]
[1625118104974,5.5559,2201.9,2201.4,0.16]
[1625118105371,4.5559,2201.9,2201.4,0.16]
[1625118105471,4.5559,2201.9,2201.3,6.85]
[1625118105869,4.5559,2201.9,2200.9,9.22213]
[1625118105973,10.42328715,2201.9,2200.9,0.14]
[1625118106070,10.42328715,2201.9,2200.8,6.43809946]
[1625118106071,5.01,2201.7,2200.8,6.43809946]
[1625118106173,5.01,2201.6,2200.8,6.43809946]
[1625118106272,5.01,2201.6,2200.7,6.85]
[1625118106372,5.01,2201.6,2200.8,6.05957382]
[1625118106473,5.01,2201.6,2200.6,0.14]
[1625118106576,5.01,2201.5,2200.6,0.14]
[1625118106969,5.01,2201.5,2200.7,9.08297]
[1625118106970,11.82314,2201.5,2200.7,9.08297]
[1625118107072,3.40668,2201.4,2200.7,9.08297]
[1625118107171,8.10658,2201.4,2200.7,9.08297]
[1625118107671,8.10658,2201.4,2200.5,6.08372358]
[1625118107773,8.10658,2201.4,2200.4,11.35064]
[1625118107972,13.88909681,2201.4,2200.4,11.35064]
[1625118108096,13.87504115,2201.4,2200.4,11.35064]
[1625118108197,6.81348,2201.3,2200.5,6.81341]
[1625118108700,9.32168,2201.4,2200.5,12.83384396]
[1625118108803,9.32168,2201.4,2200.6,0.08]
[1625118109100,9.32168,2201.4,2200.5,6.02043396]
[1625118109659,5.01,2201.2,2199.9,11.49275]
[1625118109856,5.01,2201.2,2199.7,6.55496422]
[1625118109857,11.7058743,2201.1,2199.7,6.55496422]
[1625118109951,11.7058743,2201.1,2199.7,6.02974774]
[1625118110050,11.7058743,2201.1,2199.6,11.35446]
[1625118110051,5.03039598,2201.0,2199.6,11.35446]
[1625118110161,6.37872448,2200.9,2199.7,6.07167822]
[1625118110250,14.92843933,2200.9,2199.6,11.35446]
[1625118110373,5.01,2200.8,2199.6,11.35446]
[1625118110473,6.41208986,2200.7,2199.6,11.35446]
[1625118110571,11.42208986,2200.7,2199.6,11.35446]
[1625118110673,6.81564,2200.6,2199.7,6.81572]
[1625118110871,5.01,2200.4,2199.7,6.81572]
[1625118110973,9.3694,2200.4,2199.7,6.81572]
[1625118111271,9.3694,2200.4,2199.4,16.86233779]
[1625118111373,6.21887481,2200.3,2199.2,21.64177]
[1625118111477,6.29462498,2200.3,2199.2,11.35677]
[1625118111573,6.29462498,2200.3,2198.7,20.63848951]
[1625118111574,5.01,2200.1,2198.7,20.63848951]
[1625118111677,0.0517241,2200.0,2198.7,20.5067]
[1625118111776,13.68129808,2200.0,2199.1,6.81752]
[1625118111873,5.01,2199.8,2199.1,6.81752]
[1625118111972,6.18776502,2199.7,2198.7,10.1019]
[1625118112075,6.18776502,2199.7,2198.6,0.14]
[1625118112273,2.15472767,2199.7,2198.6,4.70042814]
[1625118112607,2.15472767,2199.7,2198.9,0.06]
[1625118112998,2.15472767,2199.7,2198.6,9.71042814]
[1625118113298,2.15472767,2199.7,2198.9,6.81816]
[1625118114099,7.16472767,2199.7,2198.9,6.81816]
[1625118114200,9.86426863,2199.7,2198.5,20.1478]
[1625118114299,5.01,2199.6,2198.5,26.96736]
[1625118114398,5.01,2199.5,2198.5,26.96736]
[1625118114500,11.09259017,2199.5,2198.5,26.96736]
[1625118114600,5.01,2199.4,2198.5,26.96736]
[1625118114701,11.09259017,2199.5,2198.5,16.75306]
[1625118114856,6.00026081,2199.3,2198.5,16.75306]
[1625118114949,11.04186081,2199.3,2198.5,16.75306]
[1625118115049,11.04186081,2199.3,2198.5,6.81956]
[1625118116452,5.0416,2199.3,2198.5,12.83550145]
[1625118116552,1.3458,2199.4,2198.5,12.83550145]
[1625118116650,5.93342059,2199.3,2198.6,0.06]
[1625118117112,5.93342059,2199.3,2198.4,11.5005]
[1625118117856,5.93342059,2199.3,2198.5,5.79686705]
[1625118117955,5.93342059,2199.3,2198.4,11.5005]
[1625118118055,5.93342059,2199.3,2198.7,6.8188]
[1625118118160,3.2,2199.7,2198.8,5.94963626]
[1625118118261,10.85778495,2199.8,2198.7,6.66183936]
[1625118118262,5.01,2199.8,2198.7,6.66183936]
[1625118118359,5.01,2199.8,2198.7,6.80183936]
[1625118118467,4.86973585,2200.0,2198.9,5.01]
[1625118118558,0.14,2200.1,2198.9,5.01]
[1625118118667,1.0,2200.2,2199.0,6.80779494]
[1625118118861,1.0,2200.2,2199.2,5.01]
[1625118119062,1.0,2200.2,2199.3,6.45345789]
[1625118119570,11.7680018,2200.6,2199.3,15.54216789]
[1625118119749,26.7680018,2200.6,2199.3,15.40216789]
[1625118119847,5.42412865,2200.5,2199.3,6.31345789]
[1625118119949,8.70962865,2200.5,2199.3,6.31345789]
[1625118120043,5.83368251,2200.4,2199.1,6.46954499]
[1625118120243,5.91368251,2200.4,2199.1,6.46954499]
[1625118120547,9.0,2199.3,2199.1,6.46954499]
[1625118120644,9.0,2199.3,2199.0,9.08991]
[1625118120745,2.27798931,2199.3,2199.0,9.08991]
[1625118120846,2.27798931,2199.3,2199.2,13.6175]
[1625118120949,2.27798931,2199.3,2199.2,6.8175]
[1625118122300,5.01,2199.9,2199.2,6.8175]
[1625118122599,1.4657,2200.0,2199.1,6.36268531]
[1625118122701,4.1806,2199.9,2199.1,6.36268531]
[1625118122825,4.1806,2199.9,2199.0,9.08991]
[1625118123302,4.1806,2199.9,2199.1,6.0240928]
[1625118123402,4.1806,2199.9,2199.2,6.81762]
[1625118123604,4.1806,2199.9,2199.3,0.08]
[1625118123854,4.1806,2199.9,2199.2,5.01]
[1625118124155,4.1806,2199.9,2199.0,9.08991]
[1625118124251,4.1806,2199.9,2199.0,15.1555713]
[1625118124704,1.49173227,2199.9,2199.0,15.1555713]
[1625118125007,1.49173227,2199.9,2199.1,0.04]
[1625118125405,1.49173227,2199.9,2199.3,6.81715]
[1625118127921,3.8827,2200.0,2199.3,6.81715]
[1625118128016,2.417,2200.0,2199.3,6.81715]
[1625118128216,0.8221,2200.0,2199.3,6.81715]
[1625118128370,11.31093671,2200.1,2199.0,9.08991]
[1625118128473,12.40283671,2200.1,2199.0,9.08991]
[1625118128574,5.36701604,2200.0,2199.0,9.08991]
[1625118128673,5.36701604,2200.0,2199.0,15.02841867]
[1625118129171,5.01,2199.8,2199.0,15.02841867]
[1625118129272,9.4355,2199.8,2199.0,9.08991]
[1625118129372,9.4355,2199.8,2199.4,0.00652434]
[1625118129571,0.08,2199.7,2199.4,0.00652434]
[1625118130074,9.4355,2199.8,2199.4,0.00652434]
[1625118130372,5.01,2199.7,2199.4,0.00652434]
[1625118131301,4.4255,2199.8,2199.4,0.00652434]
[1625118131903,2.3704,2199.9,2199.4,0.00652434]
[1625118132005,10.7509,2200.7,2199.4,0.00652434]
[1625118132103,10.7509,2200.7,2199.4,8.56916146]
[1625118132104,0.14,2200.7,2199.4,8.56916146]
[1625118132256,10.85,2201.5,2199.5,5.15007591]
[1625118132386,54.2825,2202.2,2200.2,0.30356444]
[1625118132461,10.1364,2202.1,2200.2,5.87516719]
[1625118132554,10.1364,2202.1,2200.3,8.73840425]
[1625118132661,10.1364,2202.1,2200.4,5.01]
[1625118132755,16.32019178,2202.1,2200.4,5.01]
[1625118132869,16.32019178,2202.1,2200.8,9.08295]
[1625118133018,2.68813306,2202.0,2200.8,9.08295]
[1625118133117,2.68813306,2202.0,2200.5,7.00707634]
[1625118133118,21.92848037,2201.9,2200.5,7.00707634]
[1625118133217,22.06848037,2201.9,2200.5,7.00707634]
[1625118133316,22.06848037,2201.9,2200.5,6.09192257]
[1625118133414,22.06848037,2201.9,2200.4,9.22411]
[1625118133517,22.06848037,2201.9,2200.5,5.95491752]
[1625118133518,3.4069,2201.7,2200.5,5.95491752]
[1625118133614,3.4069,2201.7,2200.5,6.02303589]
[1625118133715,11.16317176,2201.7,2200.5,5.94014404]
[1625118134022,11.47071,2201.7,2200.6,6.81361]
[1625118134116,17.79197061,2201.7,2200.6,6.81361]
[1625118134316,11.47071,2201.7,2200.7,6.05164395]
[1625118134416,11.47071,2201.7,2200.5,6.53519282]
[1625118134519,1.2507,2201.7,2200.7,0.26]
[1625118134619,1.2507,2201.7,2200.7,0.14]
[1625118134827,6.34989965,2201.7,2200.7,0.14]
[1625118134924,9.12444692,2201.7,2200.5,6.53519282]
[1625118135115,16.6122689,2201.7,2200.4,9.08411]
[1625118135172,5.01,2201.5,2200.4,8.96973963]
[1625118135272,5.01,2201.5,2200.5,6.0964079]
[1625118135573,2.68813306,2201.4,2200.4,8.96973963]
[1625118135673,2.68813306,2201.4,2200.5,6.04918263]
[1625118135823,5.01,2201.2,2200.5,6.16918263]
[1625118135922,5.01,2201.3,2200.5,6.04918263]
[1625118136022,11.3910015,2201.6,2200.4,8.96973963]
[1625118136123,11.3910015,2201.6,2200.7,6.81288]
[1625118136225,5.01,2201.4,2200.7,6.81288]
[1625118136522,10.2201,2201.7,2200.7,6.81288]
[1625118136624,5.01,2201.5,2200.7,6.81288]
[1625118137026,5.01,2201.5,2200.5,6.06308933]
[1625118137123,11.12582594,2201.5,2200.5,6.06308933]
[1625118137222,5.01,2201.4,2200.4,8.96973963]
[1625118137455,11.82416,2201.3,2200.4,8.96973963]
[1625118138468,5.01,2201.3,2200.5,6.16275764]
[1625118138664,5.01,2201.3,2200.4,8.96973963]
[1625118138761,11.38647617,2201.5,2200.4,8.96973963]
[1625118138859,11.38647617,2201.5,2200.4,9.02973963]
[1625118138962,5.01,2201.5,2200.5,5.99581698]
[1625118140417,5.01,2201.5,2200.6,6.81355]
[1625118140617,5.01,2201.4,2200.6,6.81355]
[1625118141116,5.01,2201.4,2200.4,12.86973963]
[1625118141317,5.01,2201.3,2200.4,12.86973963]
[1625118141417,5.01,2201.3,2200.4,13.00973963]
[1625118141617,5.01,2201.3,2200.4,9.10973963]
[1625118141858,5.01,2201.3,2200.5,5.94899569]
[1625118141959,5.01,2201.3,2200.5,12.96254569]
[1625118142160,5.01,2201.3,2200.5,7.01355]
[1625118142257,5.01,2201.3,2200.5,6.81355]
[1625118143113,5.01,2201.3,2200.5,12.90804247]
[1625118143210,5.01,2201.3,2200.5,6.81355]
[1625118143510,5.01,2201.3,2200.5,12.77972329]
[1625118144010,5.01,2201.3,2200.5,12.79151537]
[1625118144115,5.01,2201.3,2200.5,12.75658932]
[1625118144314,5.01,2201.3,2200.5,6.81355]
[1625118145217,5.01,2201.3,2200.2,2.50690275]
[1625118145316,11.38180359,2201.2,2200.2,2.50690275]
[1625118145418,11.38180359,2201.2,2200.2,0.00690275]
[1625118145519,5.15,2201.1,2200.2,0.00690275]
[1625118145715,5.01,2201.0,2200.2,0.00690275]
[1625118145814,11.82528,2201.0,2200.2,0.00690275]
[1625118146016,5.01,2200.9,2200.2,0.00690275]
[1625118146115,14.54678,2201.0,2200.2,0.00690275]
[1625118147070,7.7315,2201.0,2200.2,0.00690275]
[1625118147267,5.01,2200.9,2200.2,0.00690275]
[1625118147370,5.01,2200.9,2200.4,0.00690275]
[1625118147467,5.01,2200.8,2200.4,0.00690275]
[1625118147569,9.8536,2200.8,2200.4,0.00690275]
[1625118149270,9.8536,2200.8,2200.4,6.82123275]
[1625118149467,4.8436,2200.8,2200.4,6.82123275]
[1625118149566,0.8648,2200.9,2200.4,0.00690275]
[1625118149666,6.59841619,2201.3,2200.4,0.00690275]
[1625118150364,4.0912,2201.3,2200.7,6.81339]
[1625118150462,21.0011,2201.4,2200.7,6.81339]
[1625118150566,21.0011,2201.4,2200.8,5.9182902]
[1625118150567,10.692,2201.4,2200.8,5.9182902]
[1625118150661,10.692,2201.4,2200.8,0.08]
[1625118150879,5.01,2201.2,2200.7,6.81339]
[1625118151082,5.01,2201.5,2200.7,6.81339]
[1625118151180,5.01,2201.5,2200.4,6.72522035]
[1625118151280,5.01,2201.4,2200.4,6.72522035]
[1625118151383,9.9417,2201.4,2200.4,6.72522035]
[1625118151482,12.61271169,2201.4,2200.4,6.72522035]
[1625118152382,12.61271169,2201.4,2200.5,6.81394]
[1625118152583,5.01,2201.3,2200.6,6.0352544]
[1625118152883,5.01,2201.3,2200.4,6.35287449]
[1625118152884,5.01,2201.2,2200.4,6.35287449]
[1625118153670,5.01,2201.2,2200.8,6.01179123]
[1625118153769,5.01,2201.2,2200.8,6.00717488]
[1625118153871,5.01,2201.2,2200.7,6.81335]
[1625118154928,5.01,2201.2,2200.8,6.01516941]
[1625118155029,5.01,2201.2,2200.8,6.15628539]
[1625118155227,2.67101169,2201.4,2200.8,3.4307]
[1625118155370,13.16421619,2201.7,2200.9,6.34314199]
[1625118155765,13.16421619,2201.7,2200.8,0.14]
[1625118156164,13.16421619,2201.7,2201.0,6.81234]
[1625118156264,13.16421619,2201.7,2200.8,0.14]
[1625118156365,15.78670467,2201.7,2200.7,6.45880912]
[1625118156464,5.01,2201.5,2200.7,6.45880912]
[1625118156564,9.3232,2201.5,2200.7,6.45880912]
[1625118156664,9.3232,2201.5,2200.6,11.38393]
[1625118156963,9.3232,2201.5,2200.6,9.08393]
[1625118157063,11.94568848,2201.5,2200.6,9.08393]
[1625118157366,11.94568848,2201.5,2200.7,5.91109313]
[1625118157469,11.94568848,2201.5,2200.6,9.08393]
[1625118157913,11.94568848,2201.5,2200.7,6.03214759]
[1625118158213,11.94568848,2201.5,2200.6,9.08393]
[1625118158313,11.94568848,2201.5,2200.7,6.2253391]
[1625118158622,6.93568848,2201.5,2200.7,6.2253391]
[1625118158817,6.93568848,2201.5,2200.8,0.08]
[1625118159118,6.93568848,2201.5,2201.0,6.81232]
[1625118159966,6.93568848,2201.5,2200.7,6.2253391]
[1625118160167,6.93568848,2201.5,2200.6,9.08393]
[1625118160318,6.93568848,2201.5,2200.7,5.89939784]
[1625118160417,6.93568848,2201.5,2200.7,5.93939784]
[1625118160517,6.93568848,2201.5,2200.9,6.81258]
[1625118161021,6.93568848,2201.5,2201.0,6.05987451]
[1625118161125,15.2212,2201.8,2201.0,6.05987451]
[1625118161126,5.01,2201.8,2201.0,6.05987451]
[1625118161220,20.6002,2202.2,2200.7,11.99433301]
[1625118161319,10.7573,2202.2,2201.1,0.26]
[1625118161424,10.7573,2202.2,2201.2,0.14]
[1625118161724,10.7573,2202.2,2201.6,6.81048]
[1625118161823,10.747,2202.4,2201.6,6.81048]
[1625118161920,10.747,2202.4,2201.7,5.97452056]
[1625118162024,10.747,2202.4,2201.4,0.14]
[1625118162160,6.02588014,2202.6,2201.4,0.14]
[1625118162260,1.0,2202.7,2201.4,0.14]
[1625118162363,6.95628213,2202.7,2201.4,0.28]
[1625118162463,6.95628213,2202.7,2201.5,0.0203758]
[1625118162560,6.95628213,2202.7,2201.4,0.14]
[1625118162661,6.95628213,2202.7,2201.6,0.14]
[1625118162766,1.0,2202.7,2201.8,9.07891]
[1625118162913,1.0,2202.7,2201.9,7.18267392]
[1625118163011,1.0,2202.7,2201.9,7.32267392]
[1625118163214,6.05916477,2204.1,2201.9,7.32267392]
[1625118163215,1.0,2203.1,2202.0,0.14]
[1625118163316,24.24118619,2203.7,2202.2,0.30627368]
[1625118163317,13.85748619,2203.7,2202.2,0.30627368]
[1625118163415,6.85,2203.9,2202.3,0.13954272]
[1625118163519,6.85,2203.9,2202.3,5.14954272]
[1625118163615,6.85,2203.9,2202.7,0.30926096]
[1625118163715,6.85,2203.9,2202.8,0.07021176]
[1625118163815,6.85,2203.9,2203.0,6.80547]
[1625118163964,6.85,2203.9,2203.1,5.95779013]
[1625118164066,6.85,2203.9,2203.1,0.14]
[1625118164941,6.85,2203.9,2203.1,6.9452]